[Event "Titled Tuesday Blitz June 29 2021"]
[White "GelmanAlexander"]
[Black "VladDobrov"]
[WhiteElo "2582"]
[BlackElo "2787"]
[Result "1/2-1/2"]
[Round "06"]
[TimeControl "180+1"]
[Date "2021.06.29"]
[WhiteClock "0:00:08"]
[BlackClock "0:00:02"]

1. d4 {[%clk 0:03:00]}  Nf6 {[%clk 0:02:59]} 2. Nc3 {[%clk 0:03:01]}  d5 {[%clk 0:02:58]} 3. Bf4 {[%clk 0:03:01]}  c5 {[%clk 0:02:57]} 4. e3 {[%clk 0:03:01]}  cxd4 {[%clk 0:02:57]} 5. exd4 {[%clk 0:03:01]}  a6 {[%clk 0:02:58]} 6. Nf3 {[%clk 0:03:01]}  Bg4 {[%clk 0:02:57]} 7. h3 {[%clk 0:03:01]}  Bxf3 {[%clk 0:02:57]} 8. Qxf3 {[%clk 0:03:02]}  e6 {[%clk 0:02:57]} 9. O-O-O {[%clk 0:03:01]}  Nc6 {[%clk 0:02:54]} 10. g4 {[%clk 0:03:01]}  Be7 {[%clk 0:02:54]} 11. g5 {[%clk 0:03:00]}  Nd7 {[%clk 0:02:54]} 12. h4 {[%clk 0:03:00]}  Rc8 {[%clk 0:02:54]} 13. Kb1 {[%clk 0:02:59]}  Qb6 {[%clk 0:02:36]} 14. Qe3 {[%clk 0:02:36]}  Na5 {[%clk 0:01:46]} 15. h5 {[%clk 0:02:33]}  Qc6 {[%clk 0:01:15]} 16. Rc1 {[%clk 0:01:42]}  Nb6 {[%clk 0:01:15]} 17. Qe5 {[%clk 0:01:25]}  f6 {[%clk 0:01:05]} 18. gxf6 {[%clk 0:01:24]}  Bxf6 {[%clk 0:01:05]} 19. Qe3 {[%clk 0:01:14]}  Nbc4 {[%clk 0:01:05]} 20. Qd3 {[%clk 0:01:07]}  Qb6 {[%clk 0:00:47]} 21. Na4 {[%clk 0:01:01]}  Qxd4 {[%clk 0:00:46]} 22. Qxd4 {[%clk 0:00:53]}  Bxd4 {[%clk 0:00:47]} 23. Bh3 {[%clk 0:00:47]}  Kf7 {[%clk 0:00:47]} 24. Rce1 {[%clk 0:00:44]}  Rhe8 {[%clk 0:00:46]} 25. Re2 {[%clk 0:00:44]}  b5 {[%clk 0:00:45]} 26. Nc3 {[%clk 0:00:40]}  Na3+ {[%clk 0:00:44]} 27. Kc1 {[%clk 0:00:38]}  Bxc3 {[%clk 0:00:34]} 28. bxc3 {[%clk 0:00:37]}  Rxc3 {[%clk 0:00:34]} 29. Bd2 {[%clk 0:00:35]}  Rxc2+ {[%clk 0:00:33]} 30. Kd1 {[%clk 0:00:35]}  N5c4 {[%clk 0:00:28]} 31. f4 {[%clk 0:00:20]}  Nb2+ {[%clk 0:00:27]} 32. Ke1 {[%clk 0:00:20]}  Nd3+ {[%clk 0:00:28]} 33. Kd1 {[%clk 0:00:19]}  Nb2+ {[%clk 0:00:23]} 34. Ke1 {[%clk 0:00:20]}  Nac4 {[%clk 0:00:22]} 35. f5 {[%clk 0:00:13]}  Nd3+ {[%clk 0:00:22]} 36. Kd1 {[%clk 0:00:14]}  Rxd2+ {[%clk 0:00:19]} 37. Rxd2 {[%clk 0:00:13]}  Nxd2 {[%clk 0:00:18]} 38. Kxd2 {[%clk 0:00:14]}  Nf2 {[%clk 0:00:16]} 39. fxe6+ {[%clk 0:00:13]}  Ke7 {[%clk 0:00:16]} 40. Rh2 {[%clk 0:00:13]}  Nxh3 {[%clk 0:00:17]} 41. Rxh3 {[%clk 0:00:13]}  Kxe6 {[%clk 0:00:17]} 42. Ra3 {[%clk 0:00:13]}  Ra8 {[%clk 0:00:17]} 43. Kd3 {[%clk 0:00:13]}  Ke5 {[%clk 0:00:17]} 44. Rc3 {[%clk 0:00:12]}  Kd6 {[%clk 0:00:16]} 45. Kd4 {[%clk 0:00:12]}  Re8 {[%clk 0:00:16]} 46. Rg3 {[%clk 0:00:10]}  Re4+ {[%clk 0:00:16]} 47. Kd3 {[%clk 0:00:11]}  Rh4 {[%clk 0:00:13]} 48. Rxg7 {[%clk 0:00:10]}  Rxh5 {[%clk 0:00:14]} 49. Ra7 {[%clk 0:00:11]}  Kc5 {[%clk 0:00:13]} 50. Rxa6 {[%clk 0:00:11]}  Rh3+ {[%clk 0:00:14]} 51. Kc2 {[%clk 0:00:11]}  Rh2+ {[%clk 0:00:15]} 52. Kb3 {[%clk 0:00:11]}  h5 {[%clk 0:00:15]} 53. Rh6 {[%clk 0:00:09]}  Rh3+ {[%clk 0:00:15]} 54. Kb2 {[%clk 0:00:08]}  b4 {[%clk 0:00:16]} 55. Rh8 {[%clk 0:00:08]}  Kc4 {[%clk 0:00:16]} 56. Rc8+ {[%clk 0:00:08]}  Kd4 {[%clk 0:00:16]} 57. Rb8 {[%clk 0:00:09]}  Kc5 {[%clk 0:00:15]} 58. Rc8+ {[%clk 0:00:09]}  Kd6 {[%clk 0:00:14]} 59. Rb8 {[%clk 0:00:10]}  Ke5 {[%clk 0:00:10]} 60. Rxb4 {[%clk 0:00:09]}  d4 {[%clk 0:00:10]} 61. Kc2 {[%clk 0:00:06]}  Ke4 {[%clk 0:00:10]} 62. Rb8 {[%clk 0:00:06]}  Rh2+ {[%clk 0:00:11]} 63. Kb3 {[%clk 0:00:05]}  Rh1 {[%clk 0:00:10]} 64. Re8+ {[%clk 0:00:04]}  Kd3 {[%clk 0:00:11]} 65. a4 {[%clk 0:00:05]}  Rb1+ {[%clk 0:00:10]} 66. Ka2 {[%clk 0:00:06]}  Rh1 {[%clk 0:00:08]} 67. a5 {[%clk 0:00:06]}  Rg1 {[%clk 0:00:06]} 68. a6 {[%clk 0:00:04]}  Rg6 {[%clk 0:00:06]} 69. Ra8 {[%clk 0:00:01]}  h4 {[%clk 0:00:05]} 70. Kb3 {[%clk 0:00:01]}  h3 {[%clk 0:00:05]} 71. Rh8 {[%clk 0:00:01]}  Rb6+ {[%clk 0:00:05]} 72. Ka4 {[%clk 0:00:01]}  Rxa6+ {[%clk 0:00:06]} 73. Kb5 {[%clk 0:00:01]}  Rf6 {[%clk 0:00:06]} 74. Rxh3+ {[%clk 0:00:01]}  Ke4 {[%clk 0:00:05]} 75. Kc4 {[%clk 0:00:01]}  Rc6+ {[%clk 0:00:06]} 76. Kb3 {[%clk 0:00:01]}  d3 {[%clk 0:00:06]} 77. Rh4+ {[%clk 0:00:01]}  Ke3 {[%clk 0:00:06]} 78. Rh3+ {[%clk 0:00:02]}  Ke4 {[%clk 0:00:07]} 79. Rh4+ {[%clk 0:00:02]}  Kf3 {[%clk 0:00:07]} 80. Rh3+ {[%clk 0:00:03]}  Ke2 {[%clk 0:00:07]} 81. Rh2+ {[%clk 0:00:04]}  Kd1 {[%clk 0:00:06]} 82. Rh1+ {[%clk 0:00:04]}  Kd2 {[%clk 0:00:07]} 83. Rh2+ {[%clk 0:00:05]}  Ke3 {[%clk 0:00:07]} 84. Rh3+ {[%clk 0:00:05]}  Kd4 {[%clk 0:00:07]} 85. Rh4+ {[%clk 0:00:06]}  Ke5 {[%clk 0:00:08]} 86. Rh5+ {[%clk 0:00:06]}  Kf4 {[%clk 0:00:08]} 87. Rh4+ {[%clk 0:00:07]}  Ke5 {[%clk 0:00:03]} 88. Rh5+ {[%clk 0:00:07]}  Kf4 {[%clk 0:00:02]} 89. Rh4+ {[%clk 0:00:08]}  Ke3 {[%clk 0:00:02]} 90. Rh3+ {[%clk 0:00:08]} 1/2-1/2


[Site "https://www.chess.com"]

[Event "Titled Tuesday Blitz June 29 2021"]
[White "Hikaru"]
[Black "GM_Crest"]
[WhiteElo "3153"]
[BlackElo "2798"]
[Result "1-0"]
[Round "06"]
[TimeControl "180+1"]
[Date "2021.06.29"]
[WhiteClock "0:00:09"]
[BlackClock "0:00:01"]

1. e4 {[%clk 0:03:00]}  e6 {[%clk 0:02:59]} 2. d3 {[%clk 0:03:00]}  d5 {[%clk 0:02:59]} 3. Nd2 {[%clk 0:03:01]}  c5 {[%clk 0:02:58]} 4. Ngf3 {[%clk 0:03:01]}  Nc6 {[%clk 0:02:57]} 5. g3 {[%clk 0:03:01]}  Bd6 {[%clk 0:02:57]} 6. Bg2 {[%clk 0:03:02]}  Nge7 {[%clk 0:02:58]} 7. O-O {[%clk 0:03:03]}  O-O {[%clk 0:02:58]} 8. Re1 {[%clk 0:03:03]}  Qc7 {[%clk 0:02:59]} 9. h4 {[%clk 0:02:56]}  Bd7 {[%clk 0:02:57]} 10. h5 {[%clk 0:02:55]}  h6 {[%clk 0:02:57]} 11. Nf1 {[%clk 0:02:53]}  b5 {[%clk 0:02:39]} 12. Qe2 {[%clk 0:02:48]}  f6 {[%clk 0:02:23]} 13. c3 {[%clk 0:02:48]}  b4 {[%clk 0:02:20]} 14. Ne3 {[%clk 0:02:27]}  a5 {[%clk 0:02:09]} 15. exd5 {[%clk 0:02:13]}  exd5 {[%clk 0:01:58]} 16. Nh4 {[%clk 0:01:50]}  Be6 {[%clk 0:01:33]} 17. Ng6 {[%clk 0:01:49]}  Rfe8 {[%clk 0:01:27]} 18. Nxe7+ {[%clk 0:01:43]}  Nxe7 {[%clk 0:01:24]} 19. c4 {[%clk 0:01:43]}  d4 {[%clk 0:01:08]} 20. Bxa8 {[%clk 0:00:39]}  Rxa8 {[%clk 0:00:35]} 21. Nd5 {[%clk 0:00:36]}  Bxd5 {[%clk 0:00:34]} 22. cxd5 {[%clk 0:00:37]}  Qd7 {[%clk 0:00:26]} 23. Qe6+ {[%clk 0:00:35]}  Qxe6 {[%clk 0:00:26]} 24. Rxe6 {[%clk 0:00:35]}  Rd8 {[%clk 0:00:25]} 25. Bf4 {[%clk 0:00:35]}  Nc8 {[%clk 0:00:16]} 26. Bxd6 {[%clk 0:00:34]}  Nxd6 {[%clk 0:00:16]} 27. Rc1 {[%clk 0:00:35]}  Nf7 {[%clk 0:00:08]} 28. Rxc5 {[%clk 0:00:34]}  Ne5 {[%clk 0:00:08]} 29. Rc7 {[%clk 0:00:30]}  Nxd3 {[%clk 0:00:07]} 30. Ree7 {[%clk 0:00:30]}  Ne5 {[%clk 0:00:06]} 31. Rxg7+ {[%clk 0:00:30]}  Kh8 {[%clk 0:00:06]} 32. Rh7+ {[%clk 0:00:30]}  Kg8 {[%clk 0:00:06]} 33. f4 {[%clk 0:00:29]}  d3 {[%clk 0:00:06]} 34. Kf1 {[%clk 0:00:26]}  d2 {[%clk 0:00:06]} 35. Ke2 {[%clk 0:00:27]}  Rxd5 {[%clk 0:00:06]} 36. Kd1 {[%clk 0:00:25]}  Nc4 {[%clk 0:00:05]} 37. Rxc4 {[%clk 0:00:15]}  Kxh7 {[%clk 0:00:05]} 38. g4 {[%clk 0:00:15]}  Kg7 {[%clk 0:00:05]} 39. Rc7+ {[%clk 0:00:15]}  Kf8 {[%clk 0:00:05]} 40. Rh7 {[%clk 0:00:14]}  Rd4 {[%clk 0:00:03]} 41. Rxh6 {[%clk 0:00:15]}  Rxf4 {[%clk 0:00:03]} 42. Kxd2 {[%clk 0:00:16]}  Rxg4 {[%clk 0:00:03]} 43. Rxf6+ {[%clk 0:00:15]}  Ke7 {[%clk 0:00:03]} 44. Rf5 {[%clk 0:00:14]}  Rg2+ {[%clk 0:00:03]} 45. Kc1 {[%clk 0:00:13]}  a4 {[%clk 0:00:04]} 46. Ra5 {[%clk 0:00:11]}  b3 {[%clk 0:00:01]} 47. Rxa4 {[%clk 0:00:09]} 1-0


[Site "https://www.chess.com"]

[Event "Titled Tuesday Blitz June 29 2021"]
[White "1977Ivan"]
[Black "Grischuk"]
[WhiteElo "2722"]
[BlackElo "3071"]
[Result "0-1"]
[Round "06"]
[TimeControl "180+1"]
[Date "2021.06.29"]
[WhiteClock "0:00:04"]
[BlackClock "0:00:21"]

1. c4 {[%clk 0:02:55]}  e5 {[%clk 0:02:59]} 2. b3 {[%clk 0:02:54]}  Nc6 {[%clk 0:02:56]} 3. Bb2 {[%clk 0:02:52]}  Nge7 {[%clk 0:02:56]} 4. e3 {[%clk 0:02:48]}  d5 {[%clk 0:02:54]} 5. cxd5 {[%clk 0:02:34]}  Nxd5 {[%clk 0:02:55]} 6. a3 {[%clk 0:02:33]}  Be6 {[%clk 0:02:49]} 7. Qc2 {[%clk 0:02:31]}  Qd7 {[%clk 0:02:46]} 8. Nf3 {[%clk 0:02:29]}  f6 {[%clk 0:02:46]} 9. b4 {[%clk 0:02:19]}  O-O-O {[%clk 0:02:43]} 10. Nc3 {[%clk 0:02:16]}  Nxc3 {[%clk 0:02:39]} 11. Bxc3 {[%clk 0:02:06]}  g5 {[%clk 0:02:20]} 12. h3 {[%clk 0:02:03]}  Kb8 {[%clk 0:02:11]} 13. Be2 {[%clk 0:01:51]}  Rg8 {[%clk 0:02:05]} 14. b5 {[%clk 0:01:42]}  Ne7 {[%clk 0:02:04]} 15. d4 {[%clk 0:01:42]}  e4 {[%clk 0:02:02]} 16. Nd2 {[%clk 0:01:40]}  f5 {[%clk 0:02:01]} 17. Nc4 {[%clk 0:01:35]}  Nd5 {[%clk 0:01:54]} 18. Ne5 {[%clk 0:01:31]}  Qe8 {[%clk 0:01:55]} 19. Bd2 {[%clk 0:01:25]}  Bd6 {[%clk 0:01:48]} 20. O-O {[%clk 0:01:04]}  Bxe5 {[%clk 0:01:34]} 21. dxe5 {[%clk 0:01:05]}  h5 {[%clk 0:01:34]} 22. a4 {[%clk 0:00:51]}  g4 {[%clk 0:01:34]} 23. h4 {[%clk 0:00:50]}  g3 {[%clk 0:01:34]} 24. a5 {[%clk 0:00:45]}  Qe7 {[%clk 0:01:22]} 25. fxg3 {[%clk 0:00:43]}  Rxg3 {[%clk 0:01:22]} 26. Rf2 {[%clk 0:00:20]}  f4 {[%clk 0:01:14]} 27. Be1 {[%clk 0:00:08]}  Rdg8 {[%clk 0:00:35]} 28. Qxe4 {[%clk 0:00:07]}  fxe3 {[%clk 0:00:35]} 29. Rf6 {[%clk 0:00:05]}  Rxg2+ {[%clk 0:00:33]} 30. Kh1 {[%clk 0:00:06]}  Rg1+ {[%clk 0:00:31]} 31. Kh2 {[%clk 0:00:05]}  R8g2+ {[%clk 0:00:32]} 32. Qxg2 {[%clk 0:00:05]}  Rxg2+ {[%clk 0:00:32]} 33. Kxg2 {[%clk 0:00:06]}  Nxf6 {[%clk 0:00:27]} 34. exf6 {[%clk 0:00:06]}  Bd5+ {[%clk 0:00:23]} 35. Kg3 {[%clk 0:00:05]}  Qe5+ {[%clk 0:00:22]} 36. Kh3 {[%clk 0:00:04]}  Qxa1 {[%clk 0:00:21]} 0-1


[Site "https://www.chess.com"]

[Event "Titled Tuesday Blitz June 29 2021"]
[White "JiaHaoxiang"]
[Black "dretch"]
[WhiteElo "2657"]
[BlackElo "2829"]
[Result "0-1"]
[Round "06"]
[TimeControl "180+1"]
[Date "2021.06.29"]
[WhiteClock "0:00:10"]
[BlackClock "0:00:51"]

1. d4 {[%clk 0:02:58]}  d5 {[%clk 0:02:57]} 2. c4 {[%clk 0:02:57]}  c6 {[%clk 0:02:57]} 3. Nf3 {[%clk 0:02:58]}  Nf6 {[%clk 0:02:57]} 4. Nc3 {[%clk 0:02:59]}  dxc4 {[%clk 0:02:57]} 5. a4 {[%clk 0:02:59]}  Bf5 {[%clk 0:02:57]} 6. e3 {[%clk 0:02:59]}  e6 {[%clk 0:02:57]} 7. Bxc4 {[%clk 0:02:59]}  Bb4 {[%clk 0:02:56]} 8. O-O {[%clk 0:02:59]}  O-O {[%clk 0:02:55]} 9. Qe2 {[%clk 0:02:58]}  Nbd7 {[%clk 0:02:55]} 10. e4 {[%clk 0:02:57]}  Bg4 {[%clk 0:02:55]} 11. h3 {[%clk 0:02:48]}  Bxf3 {[%clk 0:02:56]} 12. Qxf3 {[%clk 0:02:47]}  Nb6 {[%clk 0:02:56]} 13. Bb3 {[%clk 0:02:30]}  Qxd4 {[%clk 0:02:55]} 14. a5 {[%clk 0:02:23]}  Nbd7 {[%clk 0:02:55]} 15. Rd1 {[%clk 0:02:17]}  Qc5 {[%clk 0:02:46]} 16. a6 {[%clk 0:02:07]}  b5 {[%clk 0:02:40]} 17. Be3 {[%clk 0:02:00]}  Qe7 {[%clk 0:02:39]} 18. Bc2 {[%clk 0:01:54]}  Rfd8 {[%clk 0:02:15]} 19. Qg3 {[%clk 0:01:47]}  e5 {[%clk 0:02:14]} 20. Bb3 {[%clk 0:01:38]}  Bc5 {[%clk 0:02:11]} 21. Rac1 {[%clk 0:01:35]}  Bxe3 {[%clk 0:02:09]} 22. Qxe3 {[%clk 0:01:35]}  Rdc8 {[%clk 0:01:32]} 23. Ba2 {[%clk 0:01:27]}  Nc5 {[%clk 0:01:25]} 24. Qd2 {[%clk 0:00:19]}  Nxa6 {[%clk 0:01:20]} 25. Qd6 {[%clk 0:00:19]}  Qxd6 {[%clk 0:01:18]} 26. Rxd6 {[%clk 0:00:20]}  Nb4 {[%clk 0:01:16]} 27. Bb3 {[%clk 0:00:19]}  Rd8 {[%clk 0:01:04]} 28. Rcd1 {[%clk 0:00:12]}  Rxd6 {[%clk 0:01:04]} 29. Rxd6 {[%clk 0:00:13]}  Kf8 {[%clk 0:01:04]} 30. Na2 {[%clk 0:00:08]}  Nxa2 {[%clk 0:01:03]} 31. Bxa2 {[%clk 0:00:09]}  Rc8 {[%clk 0:01:03]} 32. f3 {[%clk 0:00:08]}  Ke7 {[%clk 0:01:02]} 33. Rd3 {[%clk 0:00:09]}  a5 {[%clk 0:01:03]} 34. Kf2 {[%clk 0:00:10]}  a4 {[%clk 0:01:03]} 35. Ke3 {[%clk 0:00:10]}  Ne8 {[%clk 0:01:01]} 36. g4 {[%clk 0:00:09]}  Nd6 {[%clk 0:01:00]} 37. f4 {[%clk 0:00:10]}  f6 {[%clk 0:00:58]} 38. g5 {[%clk 0:00:10]}  exf4+ {[%clk 0:00:58]} 39. Kxf4 {[%clk 0:00:10]}  fxg5+ {[%clk 0:00:59]} 40. Kxg5 {[%clk 0:00:11]}  Nxe4+ {[%clk 0:00:59]} 41. Kf4 {[%clk 0:00:11]}  Nf6 {[%clk 0:00:58]} 42. Re3+ {[%clk 0:00:11]}  Kd6 {[%clk 0:00:57]} 43. Re6+ {[%clk 0:00:11]}  Kd7 {[%clk 0:00:57]} 44. Re5 {[%clk 0:00:11]}  Re8 {[%clk 0:00:57]} 45. Rg5 {[%clk 0:00:11]}  Re7 {[%clk 0:00:56]} 46. h4 {[%clk 0:00:11]}  Kd6 {[%clk 0:00:55]} 47. Rg1 {[%clk 0:00:10]}  Re4+ {[%clk 0:00:54]} 48. Kf5 {[%clk 0:00:10]}  Rxh4 {[%clk 0:00:54]} 49. Rxg7 {[%clk 0:00:11]}  Nd5 {[%clk 0:00:52]} 50. Rd7+ {[%clk 0:00:10]}  Kxd7 {[%clk 0:00:51]} 0-1


[Site "https://www.chess.com"]

[Event "Titled Tuesday Blitz June 29 2021"]
[White "Sanan_Sjugirov"]
[Black "Ranindu2003"]
[WhiteElo "2945"]
[BlackElo "2710"]
[Result "1-0"]
[Round "06"]
[TimeControl "180+1"]
[Date "2021.06.29"]
[WhiteClock "0:00:02"]
[BlackClock "0:00:01"]

1. e4 {[%clk 0:03:00]}  e6 {[%clk 0:02:59]} 2. d4 {[%clk 0:03:00]}  d5 {[%clk 0:03:00]} 3. e5 {[%clk 0:03:01]}  c5 {[%clk 0:02:59]} 4. c3 {[%clk 0:03:02]}  Nc6 {[%clk 0:02:59]} 5. Nf3 {[%clk 0:03:02]}  Qb6 {[%clk 0:02:58]} 6. a3 {[%clk 0:03:02]}  f6 {[%clk 0:02:57]} 7. Bd3 {[%clk 0:03:01]}  g6 {[%clk 0:02:54]} 8. O-O {[%clk 0:02:58]}  fxe5 {[%clk 0:02:53]} 9. dxe5 {[%clk 0:02:58]}  Nh6 {[%clk 0:02:53]} 10. c4 {[%clk 0:02:50]}  Nf7 {[%clk 0:02:47]} 11. Nc3 {[%clk 0:02:26]}  d4 {[%clk 0:02:21]} 12. Ne4 {[%clk 0:02:26]}  Bg7 {[%clk 0:02:19]} 13. Nf6+ {[%clk 0:02:05]}  Bxf6 {[%clk 0:02:16]} 14. exf6 {[%clk 0:02:06]}  e5 {[%clk 0:02:16]} 15. Ng5 {[%clk 0:02:00]}  Ncd8 {[%clk 0:01:58]} 16. Ne4 {[%clk 0:01:51]}  Bf5 {[%clk 0:01:53]} 17. b4 {[%clk 0:01:50]}  O-O {[%clk 0:01:34]} 18. Rb1 {[%clk 0:01:38]}  Qc6 {[%clk 0:01:29]} 19. Nxc5 {[%clk 0:01:14]}  b6 {[%clk 0:01:14]} 20. Bxf5 {[%clk 0:01:10]}  gxf5 {[%clk 0:01:13]} 21. Nd3 {[%clk 0:00:25]}  Qxf6 {[%clk 0:01:13]} 22. Re1 {[%clk 0:00:25]}  Ne6 {[%clk 0:01:12]} 23. f3 {[%clk 0:00:23]}  Rae8 {[%clk 0:01:09]} 24. Bb2 {[%clk 0:00:18]}  Qg6 {[%clk 0:01:01]} 25. Nf2 {[%clk 0:00:05]}  Nf4 {[%clk 0:00:38]} 26. g3 {[%clk 0:00:05]}  Nh5 {[%clk 0:00:39]} 27. Kh1 {[%clk 0:00:04]}  Ng5 {[%clk 0:00:33]} 28. Rg1 {[%clk 0:00:03]}  Qc6 {[%clk 0:00:33]} 29. Kg2 {[%clk 0:00:02]}  Rd8 {[%clk 0:00:30]} 30. Bc1 {[%clk 0:00:02]}  f4 {[%clk 0:00:27]} 31. g4 {[%clk 0:00:02]}  Nf6 {[%clk 0:00:26]} 32. h4 {[%clk 0:00:03]}  Nf7 {[%clk 0:00:16]} 33. Re1 {[%clk 0:00:04]}  Rfe8 {[%clk 0:00:15]} 34. Rb2 {[%clk 0:00:03]}  Nd6 {[%clk 0:00:14]} 35. g5 {[%clk 0:00:03]}  Nh5 {[%clk 0:00:13]} 36. Ng4 {[%clk 0:00:03]}  Nxc4 {[%clk 0:00:11]} 37. Rc2 {[%clk 0:00:02]}  b5 {[%clk 0:00:11]} 38. Qd3 {[%clk 0:00:02]}  Qd6 {[%clk 0:00:06]} 39. Nh6+ {[%clk 0:00:02]}  Kf8 {[%clk 0:00:01]} 40. Qf5+ {[%clk 0:00:02]} 1-0


[Site "https://www.chess.com"]

[Event "Titled Tuesday Blitz June 29 2021"]
[White "exoticprincess"]
[Black "Aradhya2000"]
[WhiteElo "2866"]
[BlackElo "2696"]
[Result "1-0"]
[Round "06"]
[TimeControl "180+1"]
[Date "2021.06.29"]
[WhiteClock "0:01:02"]
[BlackClock "0:00:26"]

1. e4 {[%clk 0:03:00]}  e5 {[%clk 0:02:59]} 2. Nf3 {[%clk 0:03:00]}  Nc6 {[%clk 0:02:59]} 3. d4 {[%clk 0:03:00]}  exd4 {[%clk 0:02:59]} 4. Nxd4 {[%clk 0:03:01]}  Nf6 {[%clk 0:02:59]} 5. Nxc6 {[%clk 0:03:01]}  dxc6 {[%clk 0:02:57]} 6. Qxd8+ {[%clk 0:02:59]}  Kxd8 {[%clk 0:02:57]} 7. f3 {[%clk 0:02:55]}  Be6 {[%clk 0:02:57]} 8. Be3 {[%clk 0:02:54]}  Nd7 {[%clk 0:02:57]} 9. Nd2 {[%clk 0:02:53]}  Bc5 {[%clk 0:02:57]} 10. Kf2 {[%clk 0:02:54]}  Ke7 {[%clk 0:02:55]} 11. Bc4 {[%clk 0:02:52]}  Rhd8 {[%clk 0:02:54]} 12. Rad1 {[%clk 0:02:51]}  a5 {[%clk 0:02:53]} 13. a4 {[%clk 0:02:46]}  Bxe3+ {[%clk 0:02:37]} 14. Kxe3 {[%clk 0:02:44]}  Nb6 {[%clk 0:02:38]} 15. Bxe6 {[%clk 0:02:42]}  Kxe6 {[%clk 0:02:38]} 16. b3 {[%clk 0:02:42]}  Rd7 {[%clk 0:02:38]} 17. Nb1 {[%clk 0:02:38]}  Rad8 {[%clk 0:02:38]} 18. Nc3 {[%clk 0:02:34]}  f5 {[%clk 0:02:30]} 19. Rxd7 {[%clk 0:02:32]}  Rxd7 {[%clk 0:02:30]} 20. Rd1 {[%clk 0:02:29]}  Rxd1 {[%clk 0:02:26]} 21. Nxd1 {[%clk 0:02:30]}  fxe4 {[%clk 0:02:26]} 22. fxe4 {[%clk 0:02:30]}  Nd7 {[%clk 0:02:24]} 23. Nf2 {[%clk 0:02:23]}  Ne5 {[%clk 0:02:15]} 24. Nd3 {[%clk 0:02:18]}  b6 {[%clk 0:02:14]} 25. Nxe5 {[%clk 0:02:14]}  Kxe5 {[%clk 0:02:15]} 26. c4 {[%clk 0:02:02]}  g5 {[%clk 0:02:00]} 27. c5 {[%clk 0:01:51]}  b5 {[%clk 0:00:59]} 28. Kd3 {[%clk 0:01:38]}  bxa4 {[%clk 0:00:45]} 29. bxa4 {[%clk 0:01:37]}  h5 {[%clk 0:00:44]} 30. Ke3 {[%clk 0:01:35]}  Kf6 {[%clk 0:00:43]} 31. Kd4 {[%clk 0:01:33]}  Ke6 {[%clk 0:00:43]} 32. Kd3 {[%clk 0:01:18]}  Ke5 {[%clk 0:00:42]} 33. Ke3 {[%clk 0:01:18]}  Kf6 {[%clk 0:00:42]} 34. h4 {[%clk 0:01:14]}  Kg6 {[%clk 0:00:36]} 35. g3 {[%clk 0:01:05]}  Kf6 {[%clk 0:00:36]} 36. hxg5+ {[%clk 0:01:04]}  Kxg5 {[%clk 0:00:35]} 37. Kf3 {[%clk 0:01:05]}  Kg6 {[%clk 0:00:35]} 38. Kf4 {[%clk 0:01:03]}  Kf6 {[%clk 0:00:34]} 39. e5+ {[%clk 0:01:03]}  Ke6 {[%clk 0:00:34]} 40. Ke4 {[%clk 0:01:04]}  Kf7 {[%clk 0:00:31]} 41. Kf5 {[%clk 0:01:04]}  Ke7 {[%clk 0:00:31]} 42. e6 {[%clk 0:01:01]}  Ke8 {[%clk 0:00:29]} 43. Kg5 {[%clk 0:00:57]}  Ke7 {[%clk 0:00:29]} 44. Kxh5 {[%clk 0:00:57]}  Kxe6 {[%clk 0:00:30]} 45. g4 {[%clk 0:00:57]}  Kf7 {[%clk 0:00:25]} 46. Kh6 {[%clk 0:00:58]}  Kg8 {[%clk 0:00:23]} 47. Kg6 {[%clk 0:00:58]}  Kf8 {[%clk 0:00:23]} 48. Kf6 {[%clk 0:00:58]}  Kg8 {[%clk 0:00:23]} 49. Ke6 {[%clk 0:00:58]}  Kg7 {[%clk 0:00:23]} 50. Kd7 {[%clk 0:00:59]}  Kg6 {[%clk 0:00:23]} 51. Kxc7 {[%clk 0:00:59]}  Kg5 {[%clk 0:00:24]} 52. Kxc6 {[%clk 0:01:00]}  Kxg4 {[%clk 0:00:24]} 53. Kb5 {[%clk 0:00:59]}  Kf5 {[%clk 0:00:25]} 54. Kxa5 {[%clk 0:01:00]}  Ke6 {[%clk 0:00:25]} 55. Kb6 {[%clk 0:01:01]}  Kd7 {[%clk 0:00:26]} 56. Kb7 {[%clk 0:01:01]}  Kd8 {[%clk 0:00:26]} 57. c6 {[%clk 0:01:02]} 1-0


[Site "https://www.chess.com"]

[Event "Titled Tuesday Blitz June 29 2021"]
[White "Aborigen_came"]
[Black "ChessLover0108"]
[WhiteElo "2676"]
[BlackElo "2849"]
[Result "0-1"]
[Round "07"]
[TimeControl "180+1"]
[Date "2021.06.29"]
[WhiteClock "0:00:03"]
[BlackClock "0:00:08"]

1. Nc3 {[%clk 0:03:00]}  c5 {[%clk 0:02:53]} 2. e4 {[%clk 0:03:00]}  d6 {[%clk 0:02:53]} 3. Bb5+ {[%clk 0:03:00]}  Bd7 {[%clk 0:02:53]} 4. Bxd7+ {[%clk 0:02:59]}  Qxd7 {[%clk 0:02:54]} 5. d3 {[%clk 0:02:58]}  Nc6 {[%clk 0:02:54]} 6. Nge2 {[%clk 0:02:57]}  e6 {[%clk 0:02:51]} 7. O-O {[%clk 0:02:55]}  Nf6 {[%clk 0:02:52]} 8. Bg5 {[%clk 0:02:52]}  Be7 {[%clk 0:02:52]} 9. h3 {[%clk 0:02:49]}  h6 {[%clk 0:02:51]} 10. Bf4 {[%clk 0:02:45]}  d5 {[%clk 0:02:47]} 11. e5 {[%clk 0:02:40]}  Nh7 {[%clk 0:02:34]} 12. Bh2 {[%clk 0:02:37]}  O-O {[%clk 0:02:22]} 13. Qd2 {[%clk 0:02:32]}  Bd8 {[%clk 0:02:15]} 14. Nd1 {[%clk 0:02:07]}  Bc7 {[%clk 0:02:13]} 15. f4 {[%clk 0:02:06]}  f6 {[%clk 0:02:12]} 16. exf6 {[%clk 0:01:59]}  Nxf6 {[%clk 0:02:13]} 17. Ne3 {[%clk 0:01:52]}  Rae8 {[%clk 0:02:09]} 18. Ng4 {[%clk 0:01:41]}  d4 {[%clk 0:01:41]} 19. Nxf6+ {[%clk 0:01:36]}  Rxf6 {[%clk 0:01:41]} 20. Ng3 {[%clk 0:01:31]}  b6 {[%clk 0:01:39]} 21. Rf3 {[%clk 0:01:26]}  Nb4 {[%clk 0:01:36]} 22. c4 {[%clk 0:01:17]}  dxc3 {[%clk 0:01:26]} 23. bxc3 {[%clk 0:01:18]}  Nd5 {[%clk 0:01:27]} 24. Ne4 {[%clk 0:01:17]}  Rf7 {[%clk 0:01:27]} 25. Raf1 {[%clk 0:01:16]}  Qc6 {[%clk 0:01:19]} 26. f5 {[%clk 0:01:09]}  e5 {[%clk 0:00:38]} 27. f6 {[%clk 0:01:07]}  Nf4 {[%clk 0:00:28]} 28. g3 {[%clk 0:00:51]}  Nxh3+ {[%clk 0:00:28]} 29. Kg2 {[%clk 0:00:50]}  Ng5 {[%clk 0:00:29]} 30. Nxg5 {[%clk 0:00:47]}  hxg5 {[%clk 0:00:30]} 31. Qxg5 {[%clk 0:00:37]}  Rxf6 {[%clk 0:00:30]} 32. Qg4 {[%clk 0:00:33]}  Rxf3 {[%clk 0:00:22]} 33. Rxf3 {[%clk 0:00:25]}  e4 {[%clk 0:00:22]} 34. dxe4 {[%clk 0:00:22]}  Rxe4 {[%clk 0:00:23]} 35. Qf5 {[%clk 0:00:19]}  Re2+ {[%clk 0:00:15]} 36. Kg1 {[%clk 0:00:18]}  Qe6 {[%clk 0:00:08]} 37. Qxe6+ {[%clk 0:00:10]}  Rxe6 {[%clk 0:00:09]} 38. Kf2 {[%clk 0:00:09]}  Be5 {[%clk 0:00:08]} 39. Bg1 {[%clk 0:00:07]}  c4 {[%clk 0:00:08]} 40. Re3 {[%clk 0:00:04]}  Kf7 {[%clk 0:00:07]} 41. Kf3 {[%clk 0:00:04]}  b5 {[%clk 0:00:06]} 42. Bf2 {[%clk 0:00:04]}  a6 {[%clk 0:00:06]} 43. g4 {[%clk 0:00:04]}  Bf6 {[%clk 0:00:06]} 44. Rxe6 {[%clk 0:00:02]}  Kxe6 {[%clk 0:00:07]} 45. Be1 {[%clk 0:00:02]}  Kd5 {[%clk 0:00:07]} 46. Kf4 {[%clk 0:00:02]}  g6 {[%clk 0:00:08]} 47. Bd2 {[%clk 0:00:01]}  Be7 {[%clk 0:00:08]} 48. Be1 {[%clk 0:00:02]}  a5 {[%clk 0:00:08]} 49. Bd2 {[%clk 0:00:02]}  b4 {[%clk 0:00:09]} 50. cxb4 {[%clk 0:00:03]}  axb4 {[%clk 0:00:10]} 51. Bc1 {[%clk 0:00:03]}  Bf6 {[%clk 0:00:08]} 52. Kf3 {[%clk 0:00:03]}  b3 {[%clk 0:00:07]} 53. axb3 {[%clk 0:00:03]}  cxb3 {[%clk 0:00:08]} 54. Kf4 {[%clk 0:00:04]}  Ke6 {[%clk 0:00:08]} 55. Ke4 {[%clk 0:00:03]}  b2 {[%clk 0:00:08]} 0-1


[Site "https://www.chess.com"]